[Event "Titled Tuesday Blitz June 27 Late 2023"]
[White "Vdovin, Vadim"]
[Black "Tristan, Leonardo"]
[WhiteFideId "24107158"]
[BlackFideId "113816"]
[WhiteElo "2625"]
[BlackElo "2776"]
[Result "1-0"]
[Round "10"]
[TimeControl "180+2"]
[Date "2023.06.27"]
[WhiteClock "0:00:15"]
[BlackClock "0:00:31"]
[Board "24"]

1. e4 {[%clk 0:02:57]}  d5 {[%clk 0:02:59]} 2. exd5 {[%clk 0:02:57]}  Qxd5 {[%clk 0:03:00]} 3. Nc3 {[%clk 0:02:57]}  Qa5 {[%clk 0:03:00]} 4. d4 {[%clk 0:02:57]}  Nf6 {[%clk 0:03:01]} 5. Nf3 {[%clk 0:02:56]}  Bf5 {[%clk 0:03:01]} 6. Ne5 {[%clk 0:02:55]}  c6 {[%clk 0:03:01]} 7. Bf4 {[%clk 0:02:54]}  e6 {[%clk 0:03:00]} 8. g4 {[%clk 0:02:54]}  Bg6 {[%clk 0:03:00]} 9. h4 {[%clk 0:02:54]}  Bb4 {[%clk 0:02:44]} 10. h5 {[%clk 0:02:54]}  Be4 {[%clk 0:02:44]} 11. Rh3 {[%clk 0:02:43]}  Nbd7 {[%clk 0:02:35]} 12. Nxd7 {[%clk 0:02:28]}  Nxd7 {[%clk 0:02:35]} 13. Bd2 {[%clk 0:02:07]}  Bxc3 {[%clk 0:02:26]} 14. Rxc3 {[%clk 0:02:06]}  Qc7 {[%clk 0:02:14]} 15. Re3 {[%clk 0:01:53]}  Bh1 {[%clk 0:02:03]} 16. Rh3 {[%clk 0:01:45]}  Be4 {[%clk 0:01:50]} 17. f3 {[%clk 0:01:44]}  Bd5 {[%clk 0:01:48]} 18. c4 {[%clk 0:01:44]}  O-O-O {[%clk 0:01:23]} 19. cxd5 {[%clk 0:01:43]}  exd5 {[%clk 0:01:20]} 20. Bd3 {[%clk 0:01:29]}  Qb6 {[%clk 0:01:17]} 21. Bc3 {[%clk 0:01:23]}  Rde8+ {[%clk 0:01:13]} 22. Kf2 {[%clk 0:01:22]}  Ne5 {[%clk 0:01:11]} 23. Bf5+ {[%clk 0:01:13]}  Kb8 {[%clk 0:01:11]} 24. Qb3 {[%clk 0:01:11]}  Nc4 {[%clk 0:01:06]} 25. Qxb6 {[%clk 0:01:11]}  axb6 {[%clk 0:01:07]} 26. Bd3 {[%clk 0:01:03]}  b5 {[%clk 0:00:59]} 27. b3 {[%clk 0:01:01]}  Nd6 {[%clk 0:00:58]} 28. Rhh1 {[%clk 0:00:59]}  h6 {[%clk 0:00:55]} 29. Rhe1 {[%clk 0:00:57]}  Kc7 {[%clk 0:00:56]} 30. a4 {[%clk 0:00:55]}  bxa4 {[%clk 0:00:54]} 31. bxa4 {[%clk 0:00:56]}  Nc4 {[%clk 0:00:52]} 32. Bxc4 {[%clk 0:00:55]}  dxc4 {[%clk 0:00:52]} 33. a5 {[%clk 0:00:46]}  f6 {[%clk 0:00:52]} 34. a6 {[%clk 0:00:44]}  b6 {[%clk 0:00:47]} 35. Rxe8 {[%clk 0:00:34]}  Rxe8 {[%clk 0:00:47]} 36. Re1 {[%clk 0:00:35]}  Ra8 {[%clk 0:00:45]} 37. Re7+ {[%clk 0:00:28]}  Kd6 {[%clk 0:00:46]} 38. Rxg7 {[%clk 0:00:14]}  Rxa6 {[%clk 0:00:45]} 39. Rg6 {[%clk 0:00:14]}  Ra2+ {[%clk 0:00:40]} 40. Ke3 {[%clk 0:00:13]}  Ra3 {[%clk 0:00:39]} 41. Kd2 {[%clk 0:00:13]}  Ra2+ {[%clk 0:00:39]} 42. Kc1 {[%clk 0:00:13]}  c5 {[%clk 0:00:31]} 43. Rxf6+ {[%clk 0:00:13]}  Kd5 {[%clk 0:00:31]} 44. Rf5+ {[%clk 0:00:12]}  Kc6 {[%clk 0:00:31]} 45. dxc5 {[%clk 0:00:12]}  b5 {[%clk 0:00:32]} 46. Rf6+ {[%clk 0:00:12]}  Kd5 {[%clk 0:00:28]} 47. Bb4 {[%clk 0:00:10]}  Ra1+ {[%clk 0:00:25]} 48. Kb2 {[%clk 0:00:10]}  Rf1 {[%clk 0:00:23]} 49. Rd6+ {[%clk 0:00:10]}  Ke5 {[%clk 0:00:23]} 50. c6 {[%clk 0:00:11]}  Rf2+ {[%clk 0:00:23]} 51. Kc1 {[%clk 0:00:11]}  Rf1+ {[%clk 0:00:24]} 52. Kc2 {[%clk 0:00:11]}  Rf2+ {[%clk 0:00:24]} 53. Rd2 {[%clk 0:00:11]}  Rxf3 {[%clk 0:00:24]} 54. c7 {[%clk 0:00:12]}  Rb3 {[%clk 0:00:24]} 55. c8=Q {[%clk 0:00:11]}  Rxb4 {[%clk 0:00:25]} 56. Qc7+ {[%clk 0:00:12]}  Kf6 {[%clk 0:00:25]} 57. Qd6+ {[%clk 0:00:12]}  Kg5 {[%clk 0:00:25]} 58. Qxb4 {[%clk 0:00:13]}  c3 {[%clk 0:00:26]} 59. Kxc3 {[%clk 0:00:13]}  Kh4 {[%clk 0:00:26]} 60. g5+ {[%clk 0:00:12]}  Kxg5 {[%clk 0:00:26]} 61. Rg2+ {[%clk 0:00:12]}  Kf6 {[%clk 0:00:27]} 62. Qf4+ {[%clk 0:00:12]}  Ke6 {[%clk 0:00:28]} 63. Re2+ {[%clk 0:00:13]}  Kd5 {[%clk 0:00:29]} 64. Re5+ {[%clk 0:00:13]}  Kd6 {[%clk 0:00:30]} 65. Qf6+ {[%clk 0:00:14]}  Kd7 {[%clk 0:00:31]} 66. Re7+ {[%clk 0:00:14]}  Kd8 {[%clk 0:00:31]} 67. Qf8# {[%clk 0:00:15]} 1-0


[Site "https://www.chess.com"]

[Event "Titled Tuesday Blitz June 27 Late 2023"]
[White "Ballester Llagaria, Luis Eduardo"]
[Black "Santos Ruiz, Miguel"]
[WhiteFideId "2297620"]
[BlackFideId "22291482"]
[WhiteElo "2613"]
[BlackElo "2774"]
[Result "1-0"]
[Round "10"]
[TimeControl "180+2"]
[Date "2023.06.27"]
[WhiteClock "0:00:06"]
[BlackClock "0:00:02"]
[Board "25"]

1. e4 {[%clk 0:03:00]}  c6 {[%clk 0:02:58]} 2. Nc3 {[%clk 0:02:59]}  d5 {[%clk 0:02:57]} 3. Nf3 {[%clk 0:03:00]}  dxe4 {[%clk 0:02:53]} 4. Nxe4 {[%clk 0:03:01]}  Nf6 {[%clk 0:02:54]} 5. Qe2 {[%clk 0:03:00]}  Na6 {[%clk 0:02:54]} 6. Nxf6+ {[%clk 0:02:57]}  gxf6 {[%clk 0:02:54]} 7. d4 {[%clk 0:02:50]}  Bf5 {[%clk 0:02:44]} 8. c3 {[%clk 0:02:43]}  Nc7 {[%clk 0:02:42]} 9. g3 {[%clk 0:02:38]}  e6 {[%clk 0:02:42]} 10. Bg2 {[%clk 0:02:38]}  Be7 {[%clk 0:02:41]} 11. Nh4 {[%clk 0:02:26]}  Bg6 {[%clk 0:02:41]} 12. O-O {[%clk 0:02:20]}  f5 {[%clk 0:02:41]} 13. Nxg6 {[%clk 0:02:18]}  hxg6 {[%clk 0:02:41]} 14. a4 {[%clk 0:02:07]}  a5 {[%clk 0:02:41]} 15. Bd2 {[%clk 0:01:57]}  Bf6 {[%clk 0:02:39]} 16. Bf4 {[%clk 0:01:53]}  Kf8 {[%clk 0:02:26]} 17. Be5 {[%clk 0:01:50]}  Kg7 {[%clk 0:02:12]} 18. Rfe1 {[%clk 0:01:47]}  Nd5 {[%clk 0:02:08]} 19. Rad1 {[%clk 0:01:35]}  Qe7 {[%clk 0:01:59]} 20. c4 {[%clk 0:01:33]}  Nb4 {[%clk 0:01:59]} 21. b3 {[%clk 0:01:33]}  Rad8 {[%clk 0:01:57]} 22. Rd2 {[%clk 0:01:16]}  Rd7 {[%clk 0:01:47]} 23. Red1 {[%clk 0:01:15]}  Rhd8 {[%clk 0:01:36]} 24. Qe3 {[%clk 0:01:14]}  Bxe5 {[%clk 0:01:36]} 25. Qxe5+ {[%clk 0:01:15]}  Qf6 {[%clk 0:01:36]} 26. Qe3 {[%clk 0:01:10]}  g5 {[%clk 0:01:25]} 27. h3 {[%clk 0:01:03]}  Na6 {[%clk 0:01:15]} 28. d5 {[%clk 0:00:57]}  exd5 {[%clk 0:01:14]} 29. cxd5 {[%clk 0:00:58]}  Nb4 {[%clk 0:00:57]} 30. dxc6 {[%clk 0:00:45]}  Rxd2 {[%clk 0:00:56]} 31. Rxd2 {[%clk 0:00:44]}  Rxd2 {[%clk 0:00:26]} 32. Qxd2 {[%clk 0:00:45]}  bxc6 {[%clk 0:00:26]} 33. Kh2 {[%clk 0:00:45]}  f4 {[%clk 0:00:26]} 34. Qd7 {[%clk 0:00:41]}  Qe5 {[%clk 0:00:15]} 35. Qd8 {[%clk 0:00:34]}  Nc2 {[%clk 0:00:11]} 36. Qd2 {[%clk 0:00:32]}  Nd4 {[%clk 0:00:11]} 37. Qd3 {[%clk 0:00:26]}  Ne2 {[%clk 0:00:09]} 38. Bxc6 {[%clk 0:00:23]}  Nd4 {[%clk 0:00:08]} 39. Be4 {[%clk 0:00:20]}  f5 {[%clk 0:00:08]} 40. Bg2 {[%clk 0:00:17]}  fxg3+ {[%clk 0:00:08]} 41. fxg3 {[%clk 0:00:17]}  f4 {[%clk 0:00:09]} 42. Qc3 {[%clk 0:00:08]}  fxg3+ {[%clk 0:00:08]} 43. Qxg3 {[%clk 0:00:08]}  Qf6 {[%clk 0:00:07]} 44. h4 {[%clk 0:00:07]}  Ne6 {[%clk 0:00:04]} 45. hxg5 {[%clk 0:00:07]}  Nxg5 {[%clk 0:00:04]} 46. Qc7+ {[%clk 0:00:07]}  Kh6 {[%clk 0:00:04]} 47. Qxa5 {[%clk 0:00:07]}  Qf4+ {[%clk 0:00:04]} 48. Kg1 {[%clk 0:00:08]}  Qe3+ {[%clk 0:00:04]} 49. Kh1 {[%clk 0:00:06]}  Qc1+ {[%clk 0:00:04]} 50. Kh2 {[%clk 0:00:07]}  Qf4+ {[%clk 0:00:04]} 51. Kg1 {[%clk 0:00:07]}  Qe3+ {[%clk 0:00:04]} 52. Kh1 {[%clk 0:00:07]}  Qe1+ {[%clk 0:00:02]} 53. Qxe1 {[%clk 0:00:06]} 1-0


[Site "https://www.chess.com"]

[Event "Titled Tuesday Blitz June 27 Late 2023"]
[White "Manukyan, Artyom"]
[Black "Morefield, Jason"]
[WhiteFideId "13305786"]
[BlackFideId "30920825"]
[WhiteElo "2593"]
[BlackElo "2771"]
[Result "0-1"]
[Round "10"]
[TimeControl "180+2"]
[Date "2023.06.27"]
[WhiteClock "0:00:00"]
[BlackClock "0:00:29"]
[Board "26"]

1. e4 {[%clk 0:03:00]}  d6 {[%clk 0:02:59]} 2. d4 {[%clk 0:02:58]}  Nf6 {[%clk 0:03:00]} 3. Nc3 {[%clk 0:02:56]}  g6 {[%clk 0:03:00]} 4. f4 {[%clk 0:02:56]}  Bg7 {[%clk 0:03:00]} 5. Nf3 {[%clk 0:02:57]}  c5 {[%clk 0:03:00]} 6. dxc5 {[%clk 0:02:56]}  Qa5 {[%clk 0:03:00]} 7. Bd3 {[%clk 0:02:53]}  Qxc5 {[%clk 0:03:00]} 8. Qe2 {[%clk 0:02:53]}  O-O {[%clk 0:02:56]} 9. Be3 {[%clk 0:02:53]}  Qa5 {[%clk 0:02:56]} 10. O-O {[%clk 0:02:52]}  Bg4 {[%clk 0:02:51]} 11. h3 {[%clk 0:02:52]}  Bxf3 {[%clk 0:02:50]} 12. Qxf3 {[%clk 0:02:53]}  Nc6 {[%clk 0:02:49]} 13. a3 {[%clk 0:02:47]}  Rfc8 {[%clk 0:02:40]} 14. Rae1 {[%clk 0:02:45]}  a6 {[%clk 0:02:35]} 15. g4 {[%clk 0:02:40]}  b5 {[%clk 0:02:31]} 16. g5 {[%clk 0:02:39]}  Nd7 {[%clk 0:02:31]} 17. Qg4 {[%clk 0:02:09]}  e6 {[%clk 0:02:23]} 18. Bd2 {[%clk 0:01:59]}  b4 {[%clk 0:02:16]} 19. axb4 {[%clk 0:01:45]}  Nxb4 {[%clk 0:02:17]} 20. Nd5 {[%clk 0:01:34]}  exd5 {[%clk 0:01:55]} 21. Qxd7 {[%clk 0:01:33]}  Qc5+ {[%clk 0:01:51]} 22. Be3 {[%clk 0:00:59]}  Bd4 {[%clk 0:01:40]} 23. Bxd4 {[%clk 0:00:49]}  Qxd4+ {[%clk 0:01:40]} 24. Kh1 {[%clk 0:00:46]}  Nxd3 {[%clk 0:01:31]} 25. cxd3 {[%clk 0:00:44]}  Qxd3 {[%clk 0:01:26]} 26. e5 {[%clk 0:00:39]}  Rc2 {[%clk 0:01:18]} 27. Qg4 {[%clk 0:00:09]}  Qd2 {[%clk 0:00:58]} 28. Qg3 {[%clk 0:00:03]}  dxe5 {[%clk 0:00:53]} 29. fxe5 {[%clk 0:00:02]}  Re8 {[%clk 0:00:53]} 30. Rd1 {[%clk 0:00:02]}  Qe2 {[%clk 0:00:47]} 31. Rde1 {[%clk 0:00:02]}  Qc4 {[%clk 0:00:42]} 32. Qf3 {[%clk 0:00:02]}  d4 {[%clk 0:00:41]} 33. Qf6 {[%clk 0:00:02]}  Qd5+ {[%clk 0:00:35]} 34. Rf3 {[%clk 0:00:00]}  Rf2 {[%clk 0:00:29]} 0-1


[Site "https://www.chess.com"]

[Event "Titled Tuesday Blitz June 27 Late 2023"]
[White "Hoffmann, Asa"]
[Black "Gokerkan, Cem Kaan"]
[WhiteFideId "2001470"]
[BlackFideId "6336760"]
[WhiteElo "2466"]
[BlackElo "2715"]
[Result "0-1"]
[Round "10"]
[TimeControl "180+2"]
[Date "2023.06.27"]
[WhiteClock "0:01:01"]
[BlackClock "0:00:27"]
[Board "29"]

1. d4 {[%clk 0:02:55]}  Nf6 {[%clk 0:03:00]} 2. Bg5 {[%clk 0:02:55]}  d5 {[%clk 0:02:56]} 3. Nd2 {[%clk 0:02:54]}  h6 {[%clk 0:02:55]} 4. Bh4 {[%clk 0:02:53]}  g5 {[%clk 0:02:49]} 5. Bg3 {[%clk 0:02:53]}  c5 {[%clk 0:02:49]} 6. e3 {[%clk 0:02:53]}  Nc6 {[%clk 0:02:46]} 7. c3 {[%clk 0:02:53]}  Bf5 {[%clk 0:02:24]} 8. Ngf3 {[%clk 0:02:51]}  e6 {[%clk 0:02:22]} 9. Bb5 {[%clk 0:02:45]}  a6 {[%clk 0:02:18]} 10. Bxc6+ {[%clk 0:02:44]}  bxc6 {[%clk 0:02:19]} 11. Ne5 {[%clk 0:02:44]}  Qb6 {[%clk 0:02:17]} 12. O-O {[%clk 0:02:40]}  Be7 {[%clk 0:02:03]} 13. b3 {[%clk 0:02:35]}  a5 {[%clk 0:01:54]} 14. f3 {[%clk 0:02:34]}  cxd4 {[%clk 0:01:51]} 15. exd4 {[%clk 0:02:30]}  c5 {[%clk 0:01:51]} 16. Bf2 {[%clk 0:02:26]}  Qc7 {[%clk 0:01:43]} 17. Rc1 {[%clk 0:02:25]}  O-O {[%clk 0:01:33]} 18. Bg3 {[%clk 0:02:22]}  Qb6 {[%clk 0:01:31]} 19. Bf2 {[%clk 0:02:22]}  Rac8 {[%clk 0:01:30]} 20. Re1 {[%clk 0:02:21]}  a4 {[%clk 0:01:24]} 21. h4 {[%clk 0:02:20]}  Rfd8 {[%clk 0:01:22]} 22. hxg5 {[%clk 0:02:20]}  hxg5 {[%clk 0:01:23]} 23. Be3 {[%clk 0:02:20]}  Nd7 {[%clk 0:01:22]} 24. Ng4 {[%clk 0:02:09]}  Kg7 {[%clk 0:01:05]} 25. Qe2 {[%clk 0:02:03]}  Rh8 {[%clk 0:00:59]} 26. Kf2 {[%clk 0:02:00]}  Bxg4 {[%clk 0:00:55]} 27. fxg4 {[%clk 0:02:00]}  Nf6 {[%clk 0:00:56]} 28. Bxg5 {[%clk 0:01:50]}  cxd4 {[%clk 0:00:55]} 29. Kg3 {[%clk 0:01:29]}  Rxc3+ {[%clk 0:00:48]} 30. Nf3 {[%clk 0:01:27]}  Ne4+ {[%clk 0:00:46]} 31. Qxe4 {[%clk 0:01:19]}  dxe4 {[%clk 0:00:47]} 32. Bxe7 {[%clk 0:01:16]}  Qc7+ {[%clk 0:00:36]} 33. Kf2 {[%clk 0:01:13]}  Rxf3+ {[%clk 0:00:27]} 34. gxf3 {[%clk 0:01:01]}  Qh2+ {[%clk 0:00:27]} 0-1


[Site "https://www.chess.com"]

[Event "Titled Tuesday Blitz June 27 Late 2023"]
[White "He, Anthony"]
[Black "Vaibhav Jayant Raut"]
[WhiteFideId "2088215"]
[BlackFideId "5089034"]
[WhiteElo "2966"]
[BlackElo "2636"]
[Result "0-1"]
[Round "10"]
[TimeControl "180+2"]
[Date "2023.06.27"]
[WhiteClock "0:01:23"]
[BlackClock "0:00:23"]
[Board "30"]

1. d4 {[%clk 0:03:00]}  Nf6 {[%clk 0:02:59]} 2. Nc3 {[%clk 0:03:00]}  d5 {[%clk 0:02:59]} 3. Bf4 {[%clk 0:03:00]}  e6 {[%clk 0:03:00]} 4. Nb5 {[%clk 0:02:57]}  Na6 {[%clk 0:02:58]} 5. e3 {[%clk 0:02:57]}  c6 {[%clk 0:02:59]} 6. Nc3 {[%clk 0:02:57]}  Nc7 {[%clk 0:02:56]} 7. Nf3 {[%clk 0:02:57]}  Bd6 {[%clk 0:02:57]} 8. Ne5 {[%clk 0:02:57]}  O-O {[%clk 0:02:57]} 9. Bd3 {[%clk 0:02:58]}  Qe7 {[%clk 0:02:41]} 10. Qf3 {[%clk 0:02:56]}  Nd7 {[%clk 0:02:40]} 11. Qh3 {[%clk 0:02:53]}  g6 {[%clk 0:02:40]} 12. O-O {[%clk 0:02:43]}  f6 {[%clk 0:02:34]} 13. Nf3 {[%clk 0:02:37]}  e5 {[%clk 0:02:29]} 14. dxe5 {[%clk 0:02:34]}  fxe5 {[%clk 0:02:26]} 15. Bg5 {[%clk 0:02:32]}  Nf6 {[%clk 0:02:26]} 16. Qh4 {[%clk 0:01:56]}  e4 {[%clk 0:02:19]} 17. Bxe4 {[%clk 0:01:55]}  dxe4 {[%clk 0:02:18]} 18. Bxf6 {[%clk 0:01:55]}  Rxf6 {[%clk 0:01:56]} 19. Nxe4 {[%clk 0:01:54]}  Rf8 {[%clk 0:01:48]} 20. Nfg5 {[%clk 0:01:53]}  Be5 {[%clk 0:01:45]} 21. f4 {[%clk 0:01:51]}  Bxb2 {[%clk 0:01:38]} 22. Rab1 {[%clk 0:01:50]}  Bf6 {[%clk 0:01:38]} 23. Nxf6+ {[%clk 0:01:49]}  Rxf6 {[%clk 0:01:38]} 24. e4 {[%clk 0:01:50]}  Rf8 {[%clk 0:01:28]} 25. f5 {[%clk 0:01:47]}  gxf5 {[%clk 0:01:23]} 26. exf5 {[%clk 0:01:47]}  Bxf5 {[%clk 0:01:21]} 27. Rxb7 {[%clk 0:01:47]}  Qe3+ {[%clk 0:00:54]} 28. Kh1 {[%clk 0:01:47]}  Bd3 {[%clk 0:00:49]} 29. Re1 {[%clk 0:01:38]}  Rae8 {[%clk 0:00:47]} 30. Rbb1 {[%clk 0:01:34]}  Qxe1+ {[%clk 0:00:42]} 31. Rxe1 {[%clk 0:01:33]}  Rxe1+ {[%clk 0:00:42]} 32. Qxe1 {[%clk 0:01:34]}  Rf1+ {[%clk 0:00:43]} 33. Qxf1 {[%clk 0:01:34]}  Bxf1 {[%clk 0:00:44]} 34. Ne4 {[%clk 0:01:34]}  Bc4 {[%clk 0:00:42]} 35. a4 {[%clk 0:01:34]}  Bd5 {[%clk 0:00:39]} 36. Nd6 {[%clk 0:01:33]}  Kf8 {[%clk 0:00:37]} 37. Kg1 {[%clk 0:01:33]}  a6 {[%clk 0:00:37]} 38. Kf2 {[%clk 0:01:33]}  Ke7 {[%clk 0:00:38]} 39. Nb7 {[%clk 0:01:33]}  Ne6 {[%clk 0:00:35]} 40. Na5 {[%clk 0:01:32]}  c5 {[%clk 0:00:28]} 41. c4 {[%clk 0:01:31]}  Be4 {[%clk 0:00:28]} 42. g3 {[%clk 0:01:31]}  Kd7 {[%clk 0:00:26]} 43. Ke3 {[%clk 0:01:31]}  Bc2 {[%clk 0:00:26]} 44. h4 {[%clk 0:01:28]}  Kc7 {[%clk 0:00:24]} 45. Kd2 {[%clk 0:01:23]}  Bxa4 {[%clk 0:00:23]} 0-1


[Site "https://www.chess.com"]

[Event "Titled Tuesday Blitz June 27 Late 2023"]
[White "Gubajdullin, Alexei"]
[Black "Mekhitarian, Krikor Sevag"]
[WhiteFideId "4141202"]
[BlackFideId "2107660"]
[WhiteElo "2614"]
[BlackElo "2851"]
[Result "0-1"]
[Round "10"]
[TimeControl "180+2"]
[Date "2023.06.27"]
[WhiteClock "0:00:00"]
[BlackClock "0:00:05"]
[Board "31"]

1. d4 {[%clk 0:02:58]}  Nf6 {[%clk 0:02:59]} 2. Nf3 {[%clk 0:02:59]}  g6 {[%clk 0:02:59]} 3. Bf4 {[%clk 0:02:59]}  Bg7 {[%clk 0:02:59]} 4. e3 {[%clk 0:02:59]}  O-O {[%clk 0:02:59]} 5. Be2 {[%clk 0:03:00]}  c5 {[%clk 0:03:00]} 6. O-O {[%clk 0:03:00]}  d6 {[%clk 0:02:59]} 7. c3 {[%clk 0:03:00]}  Nh5 {[%clk 0:02:59]} 8. dxc5 {[%clk 0:02:57]}  Nxf4 {[%clk 0:02:58]} 9. exf4 {[%clk 0:02:56]}  dxc5 {[%clk 0:02:59]} 10. Qxd8 {[%clk 0:02:56]}  Rxd8 {[%clk 0:03:00]} 11. a4 {[%clk 0:02:55]}  Nc6 {[%clk 0:02:45]} 12. a5 {[%clk 0:02:54]}  e5 {[%clk 0:02:42]} 13. fxe5 {[%clk 0:02:49]}  Nxe5 {[%clk 0:02:43]} 14. Na3 {[%clk 0:02:38]}  Nd3 {[%clk 0:02:20]} 15. Rfd1 {[%clk 0:02:36]}  Bf5 {[%clk 0:02:20]} 16. Nc4 {[%clk 0:01:47]}  Nf4 {[%clk 0:02:09]} 17. Bf1 {[%clk 0:01:44]}  Be6 {[%clk 0:01:59]} 18. Nd6 {[%clk 0:01:34]}  Rab8 {[%clk 0:01:47]} 19. Nb5 {[%clk 0:01:15]}  a6 {[%clk 0:01:44]} 20. Na3 {[%clk 0:01:10]}  Bg4 {[%clk 0:01:11]} 21. Nc4 {[%clk 0:01:02]}  Nh3+ {[%clk 0:00:58]} 22. gxh3 {[%clk 0:01:00]}  Bxf3 {[%clk 0:00:58]} 23. Rxd8+ {[%clk 0:00:57]}  Rxd8 {[%clk 0:00:59]} 24. Bg2 {[%clk 0:00:56]}  Bxg2 {[%clk 0:00:32]} 25. Kxg2 {[%clk 0:00:56]}  Bh6 {[%clk 0:00:31]} 26. Kf3 {[%clk 0:00:53]}  Rd5 {[%clk 0:00:28]} 27. Ke2 {[%clk 0:00:45]}  Kf8 {[%clk 0:00:25]} 28. Rd1 {[%clk 0:00:45]}  Rxd1 {[%clk 0:00:24]} 29. Kxd1 {[%clk 0:00:45]}  Bf4 {[%clk 0:00:22]} 30. Ke2 {[%clk 0:00:38]}  Bxh2 {[%clk 0:00:21]} 31. Kf3 {[%clk 0:00:38]}  Ke7 {[%clk 0:00:19]} 32. Ke4 {[%clk 0:00:38]}  Ke6 {[%clk 0:00:19]} 33. f3 {[%clk 0:00:34]}  f5+ {[%clk 0:00:20]} 34. Kd3 {[%clk 0:00:34]}  Bc7 {[%clk 0:00:20]} 35. Ke3 {[%clk 0:00:33]}  h5 {[%clk 0:00:17]} 36. Kd3 {[%clk 0:00:33]}  Kd5 {[%clk 0:00:17]} 37. Ne3+ {[%clk 0:00:32]}  Ke5 {[%clk 0:00:18]} 38. Ng2 {[%clk 0:00:27]}  Bxa5 {[%clk 0:00:16]} 39. f4+ {[%clk 0:00:26]}  Kd5 {[%clk 0:00:14]} 40. Nh4 {[%clk 0:00:26]}  Bc7 {[%clk 0:00:10]} 41. Nxg6 {[%clk 0:00:25]}  Ke6 {[%clk 0:00:11]} 42. Ke3 {[%clk 0:00:23]}  b5 {[%clk 0:00:10]} 43. Nh4 {[%clk 0:00:23]}  Bd8 {[%clk 0:00:08]} 44. Nf3 {[%clk 0:00:22]}  Bf6 {[%clk 0:00:09]} 45. Ne1 {[%clk 0:00:20]}  Kd5 {[%clk 0:00:09]} 46. Kd3 {[%clk 0:00:16]}  a5 {[%clk 0:00:09]} 47. Ng2 {[%clk 0:00:15]}  c4+ {[%clk 0:00:09]} 48. Ke3 {[%clk 0:00:14]}  b4 {[%clk 0:00:10]} 49. Kd2 {[%clk 0:00:14]}  bxc3+ {[%clk 0:00:10]} 50. bxc3 {[%clk 0:00:12]}  Ke4 {[%clk 0:00:11]} 51. Kc2 {[%clk 0:00:09]}  Kf3 {[%clk 0:00:08]} 52. Ne1+ {[%clk 0:00:08]}  Kxf4 {[%clk 0:00:08]} 53. Kd2 {[%clk 0:00:07]}  Kg3 {[%clk 0:00:07]} 54. Nc2 {[%clk 0:00:07]}  f4 {[%clk 0:00:07]} 55. Na3 {[%clk 0:00:07]}  f3 {[%clk 0:00:08]} 56. Nxc4 {[%clk 0:00:06]}  f2 {[%clk 0:00:09]} 57. Ke2 {[%clk 0:00:05]}  Bxc3 {[%clk 0:00:05]} 58. Ne3 {[%clk 0:00:05]}  a4 {[%clk 0:00:04]} 59. Nf1+ {[%clk 0:00:05]}  Kg2 {[%clk 0:00:03]} 60. Ne3+ {[%clk 0:00:05]}  Kg1 {[%clk 0:00:03]} 61. h4 {[%clk 0:00:05]}  a3 {[%clk 0:00:04]} 62. Kd3 {[%clk 0:00:03]}  Bb2 {[%clk 0:00:03]} 63. Kc2 {[%clk 0:00:02]}  f1=Q {[%clk 0:00:02]} 64. Nxf1 {[%clk 0:00:02]}  Kxf1 {[%clk 0:00:03]} 65. Kb3 {[%clk 0:00:02]}  Kg2 {[%clk 0:00:04]} 66. Ka2 {[%clk 0:00:00]}  Kg3 {[%clk 0:00:05]} 0-1


[Site "https://www.chess.com"]

[Event "Titled Tuesday Blitz June 27 Late 2023"]
[White "Aradhya, Garg"]
[Black "Fantinel, Thibault"]
[WhiteFideId "25006746"]
[BlackFideId "663395"]
[WhiteElo "2748"]
[BlackElo "2599"]
[Result "1-0"]
[Round "10"]
[TimeControl "180+2"]
[Date "2023.06.27"]
[WhiteClock "0:00:10"]
[BlackClock "0:00:03"]
[Board "33"]

1. d4 {[%clk 0:02:56]}  Nf6 {[%clk 0:03:00]} 2. c4 {[%clk 0:02:56]}  b6 {[%clk 0:03:00]} 3. Nc3 {[%clk 0:02:52]}  Bb7 {[%clk 0:03:00]} 4. d5 {[%clk 0:02:52]}  e6 {[%clk 0:03:00]} 5. a3 {[%clk 0:02:53]}  Bd6 {[%clk 0:03:01]} 6. Nf3 {[%clk 0:02:53]}  O-O {[%clk 0:03:02]} 7. Bg5 {[%clk 0:02:54]}  Be7 {[%clk 0:03:00]} 8. Qd2 {[%clk 0:02:00]}  h6 {[%clk 0:02:59]} 9. Bf4 {[%clk 0:02:01]}  Nh5 {[%clk 0:02:47]} 10. e3 {[%clk 0:01:57]}  d6 {[%clk 0:02:39]} 11. Bg3 {[%clk 0:01:57]}  Nd7 {[%clk 0:02:34]} 12. Be2 {[%clk 0:01:55]}  Nc5 {[%clk 0:02:08]} 13. Rd1 {[%clk 0:01:53]}  a5 {[%clk 0:02:06]} 14. O-O {[%clk 0:01:52]}  Nxg3 {[%clk 0:02:04]} 15. hxg3 {[%clk 0:01:51]}  a4 {[%clk 0:02:03]} 16. Nd4 {[%clk 0:01:51]}  e5 {[%clk 0:01:47]} 17. Nc6 {[%clk 0:01:50]}  Bxc6 {[%clk 0:01:43]} 18. dxc6 {[%clk 0:01:50]}  f5 {[%clk 0:01:39]} 19. Nd5 {[%clk 0:01:44]}  Bf6 {[%clk 0:01:31]} 20. Bd3 {[%clk 0:01:40]}  e4 {[%clk 0:01:22]} 21. Bb1 {[%clk 0:01:40]}  Rf7 {[%clk 0:01:22]} 22. f3 {[%clk 0:01:32]}  Be5 {[%clk 0:01:06]} 23. f4 {[%clk 0:01:24]}  Bf6 {[%clk 0:01:06]} 24. Qe2 {[%clk 0:00:53]}  Qe8 {[%clk 0:01:01]} 25. g4 {[%clk 0:00:53]}  fxg4 {[%clk 0:01:02]} 26. Qxg4 {[%clk 0:00:52]}  Qxc6 {[%clk 0:01:02]} 27. Qg6 {[%clk 0:00:42]}  Raf8 {[%clk 0:00:26]} 28. Bxe4 {[%clk 0:00:36]}  Nxe4 {[%clk 0:00:27]} 29. Qxe4 {[%clk 0:00:36]}  Qd7 {[%clk 0:00:25]} 30. Rd2 {[%clk 0:00:33]}  Re8 {[%clk 0:00:25]} 31. Qg6 {[%clk 0:00:28]}  Kh8 {[%clk 0:00:24]} 32. g4 {[%clk 0:00:21]}  Qe6 {[%clk 0:00:19]} 33. g5 {[%clk 0:00:16]}  hxg5 {[%clk 0:00:10]} 34. fxg5 {[%clk 0:00:16]}  Be5 {[%clk 0:00:04]} 35. Qxf7 {[%clk 0:00:12]}  Qg4+ {[%clk 0:00:02]} 36. Rg2 {[%clk 0:00:12]}  Qh4 {[%clk 0:00:02]} 37. Qxe8+ {[%clk 0:00:12]}  Kh7 {[%clk 0:00:03]} 38. Qe6 {[%clk 0:00:10]}  Qh1+ {[%clk 0:00:03]} 1-0


[Site "https://www.chess.com"]